fUSD/lending_fUSD_20240712
["ID","MTS","AMOUNT","RATE_DAILY","PERIOD"]
[331802134,1720765972034,-3390.01,0.00014794,2]
[331802135,1720765972044,-977.7,0.00014794,2]
[331802136,1720765972053,-522.91,0.00014794,2]
[331802137,1720765972062,-641.99,0.00014794,2]
[331802138,1720765972072,-760.44,0.00014794,2]
[331802139,1720765972081,-853.13,0.00014794,2]
[331802140,1720765972091,-534.54,0.00014794,2]
[331802141,1720765972100,-789.27,0.00014794,2]
[331802142,1720765972110,-548.36626,0.000148,2]
[331802143,1720765972119,-4268.8828002,0.00014839,2]
[331802144,1720765972129,-30979.3421778,0.00014839,2]
[331802145,1720765972138,-1468.7867665,0.00014839,2]
[331802146,1720765972147,-500.0,0.00014849,2]
[331802147,1720765972157,-500.0,0.00014849,2]
[331802148,1720765972167,-600.13,0.00014849,2]
[331802149,1720765972176,-533.46,0.00014849,2]
[331802150,1720765972186,-547.29,0.00014849,2]
[331802151,1720765972196,-527.94,0.00014849,2]
[331802152,1720765972206,-500.0,0.00014849,2]
[331802153,1720765972215,-829.62,0.00014849,2]
[331802154,1720765972225,-678.42,0.00014849,2]
[331802155,1720765972234,-500.0,0.00014849,2]
[331802156,1720765972244,-1078.13,0.00014849,2]
[331802157,1720765972253,-500.0,0.00014849,2]
[331802158,1720765972263,-599.97,0.00014849,2]
[331802159,1720765972273,-572.91,0.00014849,2]
[331802160,1720765972283,-541.87,0.00014849,2]
[331802161,1720765972292,-561.01,0.00014849,2]
[331802162,1720765972301,-526.37,0.00014849,2]
[331802163,1720765972311,-658.35,0.00014849,2]
[331802164,1720765972321,-597.81,0.00014849,2]
[331802165,1720765972332,-665.34,0.00014849,2]
[331802166,1720765972341,-879.54,0.00014849,2]
[331802167,1720765972351,-1042.83,0.00014849,2]
[331802168,1720765972362,-500.0,0.00014849,2]
[331802169,1720765972374,-801.96,0.00014849,2]
[331802170,1720765972384,-676.83,0.00014849,2]
[331802171,1720765972393,-576.46,0.00014849,2]
[331802172,1720765972404,-679.71,0.00014849,2]
[331802173,1720765972415,-699.82,0.00014849,2]
[331802174,1720765972426,-902.64,0.00014849,2]
[331802175,1720765972438,-500.0,0.00014849,2]
[331802176,1720765972449,-969.66,0.00014849,2]
[331802177,1720765972461,-1386.9,0.00014849,2]
[331802178,1720765972473,-832.86,0.00014849,2]
[331802179,1720765972483,-1142.56,0.00014849,2]
[331802180,1720765972493,-584.03,0.00014849,2]
[331802181,1720765972503,-678.02,0.00014849,2]
[331802182,1720765972514,-965.58,0.00014849,2]
[331802183,1720765972528,-980.86,0.00014849,2]
[331802184,1720765972537,-567.27037804,0.00014849,2]
[331802185,1720765972547,-625.22,0.00014849,2]
[331802186,1720765972556,-1043.71,0.00014849,2]
[331802187,1720765972567,-500.0,0.00014849,2]
[331802188,1720765972576,-663.07,0.00014849,2]
[331802189,1720765972586,-1311.76,0.00014849,2]
[331802190,1720765972597,-615.91991318,0.00014849,2]
[331802191,1720765972606,-1064.74,0.00014849,2]
[331802192,1720765972617,-1453.03,0.00014849,2]
[331802193,1720765972626,-625.46,0.00014849,2]
[331802194,1720765972636,-651.67,0.00014849,2]
[331802195,1720765972646,-1301.15,0.00014849,2]
[331802196,1720765972656,-618.62,0.00014849,2]
[331802197,1720765972665,-1182.83,0.00014849,2]
[331802198,1720765972675,-871.11,0.00014849,2]
[331802199,1720765972685,-886.56,0.00014849,2]
[331802200,1720765972694,-553.01,0.00014849,2]
[331802201,1720765972704,-1085.4,0.00014849,2]
[331802202,1720765972714,-896.6,0.00014849,2]
[331802203,1720765972724,-830.96,0.00014849,2]
[331802204,1720765972734,-674.06,0.00014849,2]
[331802205,1720765972743,-1895.01,0.00014849,2]
[331802206,1720765972754,-1172.9,0.00014849,2]
[331802207,1720765972764,-1660.92,0.00014849,2]
[331802208,1720765972774,-644.5,0.00014849,2]
[331802209,1720765972784,-1467.31,0.00014849,2]
[331802210,1720765972795,-981.49,0.00014849,2]
[331802211,1720765972818,-1112.45,0.00014849,2]
[331802212,1720765972828,-721.53,0.00014849,2]
[331802213,1720765972838,-773.09,0.00014849,2]
[331802214,1720765972849,-750.22,0.00014849,2]
[331802215,1720765972858,-617.12,0.00014849,2]
[331802216,1720765972868,-1485.55,0.00014849,2]
[331802217,1720765972878,-645.73,0.00014849,2]
[331802218,1720765972888,-609.33,0.00014849,2]
[331802219,1720765972898,-1043.11,0.00014849,2]
[331802220,1720765972908,-577.94,0.00014849,2]
[331802221,1720765972917,-572.94,0.00014849,2]
[331802222,1720765972927,-1001.09,0.00014849,2]
[331802223,1720765972937,-826.26,0.00014849,2]
[331802224,1720765972947,-863.68,0.00014849,2]
[331802225,1720765972960,-978.71,0.00014849,2]
[331802226,1720765972970,-927.14,0.00014849,2]
[331802227,1720765972980,-1033.49,0.00014849,2]
[331802228,1720765972990,-584.99,0.00014849,2]
[331802229,1720765973000,-924.22,0.00014849,2]
[331802230,1720765973011,-936.64,0.00014849,2]
[331802231,1720765973021,-1551.06,0.00014849,2]
[331802232,1720765973031,-500.0,0.00014849,2]
[331802233,1720765973042,-1266.54,0.00014849,2]
[331802234,1720765973051,-583.16,0.00014849,2]
[331802235,1720765973061,-1145.72,0.00014849,2]
[331802236,1720765973071,-628.89,0.00014849,2]
[331802237,1720765973081,-1072.75,0.00014849,2]
[331802238,1720765973090,-882.64,0.00014849,2]
[331802239,1720765973100,-908.15,0.00014849,2]
[331802240,1720765973110,-617.45,0.00014849,2]
[331802241,1720765973120,-597.8,0.00014849,2]
[331802242,1720765973130,-1413.12,0.00014849,2]
[331802243,1720765973139,-684.65,0.00014849,2]
[331802244,1720765973148,-1269.4,0.00014849,2]
[331802245,1720765973159,-1009.57,0.00014849,2]
[331802246,1720765973169,-820.34,0.00014849,2]
[331802247,1720765973179,-570.33,0.00014849,2]
[331802248,1720765973188,-751.75,0.00014849,2]
[331802249,1720765973198,-1287.67,0.00014849,2]
[331802250,1720765973208,-922.77,0.00014849,2]
[331802251,1720765973242,-1345.39,0.00014849,2]
[331802252,1720765973264,-649.45,0.00014849,2]
[331802253,1720765973281,-271.9,0.00014849,2]
[331802254,1720765973299,-536.18,0.00014849,2]
[331802255,1720765973317,-895.96,0.00014849,2]
[331802256,1720765973336,-566.55,0.00014849,2]
[331802257,1720765973354,-729.38,0.00014849,2]
[331802258,1720765973370,-1632.41,0.00014849,2]
[331802259,1720765973390,-1661.47,0.00014849,2]
[331802260,1720765973410,-1622.68,0.00014849,2]
[331802261,1720765973423,-1461.03,0.00014849,2]
[331802262,1720765973438,-600.18,0.00014849,2]
[331802263,1720765973455,-932.1,0.00014849,2]
[331802264,1720765973474,-652.76,0.00014849,2]
[331802265,1720765973493,-590.79,0.00014849,2]
[331802266,1720765973509,-649.76,0.00014849,2]
[331802267,1720765973523,-562.94,0.00014849,2]
[331802268,1720765973540,-500.0,0.00014849,2]
[331802269,1720765973555,-511.55,0.00014849,2]
[331802270,1720765973571,-682.84,0.00014849,2]
[331802271,1720765973591,-535.63,0.00014849,2]
[331802272,1720765973607,-913.11,0.00014849,2]
[331802273,1720765973621,-557.92,0.00014849,2]
[331802274,1720765973637,-665.1,0.00014849,2]
[331802275,1720765973657,-655.14,0.00014849,2]
[331802276,1720765973677,-647.57,0.00014849,2]
[331802277,1720765973702,-1070.59,0.00014849,2]
[331802278,1720765973728,-549.77,0.00014849,2]
[331802279,1720765973750,-955.34,0.00014849,2]
[331802280,1720765973772,-572.55,0.00014849,2]
[331802281,1720765973791,-1087.88,0.00014849,2]
[331802282,1720765973810,-924.38,0.00014849,2]
[331802283,1720765973828,-895.76,0.00014849,2]
[331802284,1720765973845,-877.72,0.00014849,2]
[331802285,1720765973864,-811.35,0.00014849,2]
[331802286,1720765973880,-701.46,0.00014849,2]
[331802287,1720765973897,-943.64,0.00014849,2]
[331802288,1720765973913,-535.3,0.00014849,2]
[331802289,1720765973929,-533.99,0.00014849,2]
[331802290,1720765973945,-951.0,0.00014849,2]
[331802291,1720765973961,-500.0,0.00014849,2]
[331802292,1720765973977,-691.79,0.00014849,2]
[331802293,1720765973992,-749.0,0.00014849,2]
[331802294,1720765974010,-1153.39,0.00014849,2]
[331802295,1720765974025,-646.61,0.00014849,2]
[331802296,1720765974039,-828.98,0.00014849,2]
[331802297,1720765974056,-797.92,0.00014849,2]
[331802298,1720765974071,-678.2,0.00014849,2]
[331802299,1720765974085,-925.55,0.00014849,2]
[331802300,1720765974100,-742.09,0.00014849,2]
[331802301,1720765974115,-718.26,0.00014849,2]
[331802302,1720765974129,-660.22,0.00014849,2]
[331802303,1720765974144,-685.66,0.00014849,2]
[331802304,1720765974159,-616.92,0.00014849,2]
[331802305,1720765974172,-626.69,0.00014849,2]
[331802306,1720765974182,-1182.27,0.00014849,2]
[331802307,1720765974193,-751.88,0.00014849,2]
[331802308,1720765974204,-578.66,0.00014849,2]
[331802309,1720765974214,-788.87,0.00014849,2]
[331802310,1720765974224,-589.96,0.00014849,2]
[331802311,1720765974235,-1518.85,0.00014849,2]
[331802312,1720765974246,-863.12,0.00014849,2]
[331802313,1720765974256,-500.0,0.00014849,2]
[331802314,1720765974266,-765.3,0.00014849,2]
[331802315,1720765974276,-1173.86,0.00014849,2]
[331802316,1720765974286,-714.93,0.00014849,2]
[331802317,1720765974297,-500.0,0.00014849,2]
[331802318,1720765974307,-889.91,0.00014849,2]
[331802319,1720765974317,-500.0,0.00014849,2]
[331802320,1720765974328,-797.27,0.00014849,2]
[331802321,1720765974339,-508.63,0.00014849,2]
[331802322,1720765974349,-500.0,0.00014849,2]
[331802323,1720765974360,-512.8,0.00014849,2]
[331802324,1720765974370,-1002.89,0.00014849,2]
[331802325,1720765974382,-500.0,0.00014849,2]
[331802326,1720765974393,-905.0,0.00014849,2]
[331802327,1720765974403,-504.61,0.00014849,2]
[331802328,1720765974413,-500.0,0.00014849,2]
[331802329,1720765974423,-446.42840144,0.00014849,2]
[331802330,1720765974434,-998.09,0.00014849,2]
[331802331,1720765974445,-1181.8,0.00014849,2]
[331802332,1720765974457,-1692.88,0.00014849,2]
[331802333,1720765974467,-806.67,0.00014849,2]
[331802334,1720765974477,-1115.55,0.00014849,2]
[331802335,1720765974487,-1111.86,0.00014849,2]
[331802336,1720765974499,-1152.37,0.00014849,2]
[331802337,1720765974512,-1099.21,0.00014849,2]
[331802338,1720765974523,-500.0,0.00014849,2]
[331802339,1720765974534,-958.58,0.00014849,2]
[331802340,1720765974544,-1435.54,0.00014849,2]
[331802341,1720765974555,-933.39,0.00014849,2]
[331802342,1720765974566,-885.22,0.00014849,2]
[331802343,1720765974575,-525.55,0.00014849,2]
[331802344,1720765974586,-578.47,0.00014849,2]
[331802345,1720765974597,-585.1,0.00014849,2]
[331802346,1720765974608,-768.43,0.00014849,2]
[331802347,1720765974618,-500.66,0.00014849,2]
[331802348,1720765974628,-1131.03,0.00014849,2]
[331802349,1720765974638,-1387.16,0.00014849,2]
[331802350,1720765974647,-769.71,0.00014849,2]
[331802351,1720765974657,-929.61,0.00014849,2]
[331802352,1720765974667,-1195.55,0.00014849,2]
[331802353,1720765974687,-1164.92,0.00014849,2]
[331802354,1720765974697,-592.67,0.00014849,2]
[331802355,1720765974707,-832.05,0.00014849,2]
[331802356,1720765974716,-1157.39,0.00014849,2]
[331802357,1720765974726,-965.25,0.00014849,2]
[331802358,1720765974736,-1057.96,0.00014849,2]
[331802359,1720765974746,-500.0,0.00014849,2]
[331802360,1720765974756,-663.73,0.00014849,2]
[331802361,1720765974766,-500.0,0.00014849,2]
[331802362,1720765974776,-996.83,0.00014849,2]
[331802363,1720765974785,-778.42,0.00014849,2]
[331802364,1720765974795,-500.94,0.00014849,2]
[331802365,1720765974805,-176.29313305,0.00014849,2]
[331802366,1720765974814,-1011.24,0.00014849,2]
[331802367,1720765974824,-620.85274498,0.00014849,2]
[331802368,1720765974833,-724.27,0.00014849,2]
[331802369,1720765974843,-948.7,0.00014849,2]
[331802370,1720765974852,-1338.17,0.00014849,2]
[331802371,1720765974861,-894.67,0.00014849,2]
[331802372,1720765974871,-691.16,0.00014849,2]
[331802373,1720765974880,-706.91,0.00014849,2]
[331802374,1720765974890,-1648.59,0.00014849,2]
[331802375,1720765974899,-579.34,0.00014849,2]
[331802376,1720765974909,-534.75,0.00014849,2]
[331802377,1720765974918,-6673.84,0.00014849,2]
[331802378,1720765974928,-791.66,0.00014849,2]
[331802379,1720765974937,-868.6,0.00014849,2]
[331802380,1720765974947,-503.87,0.00014849,2]
[331802381,1720765974957,-1463.05,0.00014849,2]
[331802382,1720765974966,-500.0,0.00014849,2]
[331802383,1720765974976,-1711.11,0.00014849,2]
[331802384,1720765974985,-940.12,0.00014849,2]
[331802385,1720765974995,-1103.87,0.00014849,2]
[331802386,1720765975004,-906.68,0.00014849,2]
[331802387,1720765975015,-838.82,0.00014849,2]
[331802388,1720765975024,-774.99,0.00014849,2]
[331802389,1720765975034,-1003.46,0.00014849,2]
[331802390,1720765975043,-776.49,0.00014849,2]
[331802391,1720765975053,-715.19,0.00014849,2]
[331802392,1720765975062,-811.17,0.00014849,2]
[331802393,1720765975071,-1169.16,0.00014849,2]
[331802394,1720765975082,-2671.99,0.00014849,2]
[331802395,1720765975091,-804.64,0.00014849,2]
[331802396,1720765975101,-516.06,0.00014849,2]
[331802397,1720765975110,-1567.42,0.00014849,2]
[331802398,1720765975120,-1123.97,0.00014849,2]
[331802399,1720765975129,-682.47,0.00014849,2]
[331802400,1720765975139,-1159.17,0.00014849,2]
[331802401,1720765975148,-7796.51,0.00014849,2]
[331802402,1720765975158,-884.1,0.00014849,2]
[331802403,1720765975167,-3427.86,0.00014849,2]
[331802404,1720765975177,-761.42,0.00014849,2]
[331802405,1720765975187,-2349.61,0.00014849,2]
[331802406,1720765975197,-2824.19,0.00014849,2]
[331802407,1720765975207,-1346.46751656,0.00014849,2]
[331802408,1720765975262,-282.49879388,0.00013698,2]
[331802409,1720765975274,-217.50120612,0.00013698,2]
[331802410,1720765975283,-529.07,0.00013699,2]
[331802411,1720765975297,-500.0,0.00013753,2]
[331802412,1720765975308,-571.54,0.00013808,2]
[331802413,1720765975317,-1308.59,0.00014684,2]
[331802414,1720765975327,-66.67248344,0.00014849,2]
[331802415,1720765975336,-544.06,0.00014849,2]
[331802416,1720765975347,-746.16,0.00014849,2]
[331802417,1720765975357,-568.05,0.00014849,2]
[331802418,1720765975366,-1225.06,0.00014849,2]
[331802419,1720765975376,-1040.64,0.00014849,2]
[331802420,1720765975386,-502.01,0.00014849,2]
[331802421,1720765975396,-945.48,0.00014849,2]
[331802422,1720765975406,-1864.03,0.00014849,2]
[331802423,1720765975416,-3139.48,0.00014849,2]
[331802424,1720765975425,-782.62,0.00014849,2]
[331802425,1720765975435,-967.92,0.00014849,2]
[331802426,1720765975444,-817.59,0.00014849,2]
[331802427,1720765975454,-760.77,0.00014849,2]
[331802428,1720765975463,-672.02,0.00014849,2]
[331802429,1720765975473,-500.0,0.00014849,2]
[331802430,1720765975483,-1369.87,0.00014849,2]
[331802431,1720765975492,-503.52,0.00014849,2]
[331802432,1720765975502,-927.94,0.00014849,2]
[331802433,1720765975513,-510.11,0.00014849,2]
[331802434,1720765975526,-883.29,0.00014849,2]
[331802435,1720765975535,-703.12,0.00014849,2]
[331802436,1720765975545,-913.43,0.00014849,2]
[331802437,1720765975555,-1249.82,0.00014849,2]
[331802438,1720765975566,-698.85,0.00014849,2]
[331802439,1720765975576,-513.61,0.00014849,2]
[331802440,1720765975586,-3390.01,0.00014849,2]
[331802441,1720765975597,-977.7,0.00014849,2]
[331802442,1720765975606,-522.91,0.00014849,2]
[331802443,1720765975617,-641.99,0.00014849,2]
[331802444,1720765975627,-760.44,0.00014849,2]
[331802445,1720765975637,-853.13,0.00014849,2]
[331802446,1720765975646,-534.54,0.00014849,2]
[331802447,1720765975656,-789.27,0.00014849,2]
[331802448,1720765975666,-212.07274984,0.0001485,2]
[331802449,1720765975676,-150.0,0.0001485,2]
[331802450,1720765975687,-150.0,0.0001485,2]
[331802451,1720765975696,-150.0,0.0001485,2]
[331802452,1720765975707,-150.0,0.0001485,2]
[331802453,1720765975716,-150.0,0.0001485,2]
[331802454,1720765975726,-150.0,0.0001485,2]
[331802455,1720765975735,-150.0,0.0001485,2]
[331802456,1720765975745,-150.0,0.0001485,2]
[331802457,1720765975755,-150.0,0.0001485,2]
[331802458,1720765975766,-150.0,0.0001485,2]
[331802459,1720765975776,-212.07274984,0.00014867,2]
[331802460,1720765975786,-150.0,0.00014878,2]
[331802461,1720765975796,-212.07274984,0.00014883,2]
[331802462,1720765975806,-150.0,0.00014888,2]
[331802463,1720765975816,-167.05516023,0.000149,2]
[331802464,1720765975826,-211.01247504,0.000149,2]
[331802465,1720765975836,-211.01247503,0.000149,2]
[331802466,1720765975845,-211.01247503,0.000149,2]
[331802467,1720765975855,-323.86948513,0.000149,2]
[331802468,1720765975865,-212.07274984,0.000149,2]
[331802469,1720765975874,-380.68,0.00014903,2]
[331802470,1720765975884,-311.48536784,0.00014904,2]
[331802471,1720765975894,-500.0,0.00014904,2]
[331802472,1720765975903,-600.13,0.00014904,2]
[331802473,1720765975913,-533.46,0.00014904,2]
[331802474,1720765975922,-547.29,0.00014904,2]
[331802475,1720765975932,-527.94,0.00014904,2]
[331802476,1720765975943,-523.48469228,0.00014904,2]
[331802477,1720765977003,-829.62,0.00014904,2]
[331802478,1720765977020,-678.42,0.00014904,2]
[331802479,1720765977035,-510.05,0.00014904,2]
[331802480,1720765977045,-1078.13,0.00014904,2]
[331802481,1720765977054,-500.0,0.00014904,2]
[331802482,1720765977065,-599.97,0.00014904,2]
[331802483,1720765977074,-572.91,0.00014904,2]
[331802484,1720765977084,-541.87,0.00014904,2]
[331802485,1720765977094,-561.01,0.00014904,2]
[331802486,1720765977103,-526.37,0.00014904,2]
[331802487,1720765977114,-658.35,0.00014904,2]
[331802488,1720765977124,-597.81,0.00014904,2]
[331802489,1720765977134,-665.34,0.00014904,2]
[331802490,1720765977144,-879.54,0.00014904,2]
[331802491,1720765977153,-1042.83,0.00014904,2]
[331802492,1720765977163,-500.0,0.00014904,2]
[331802493,1720765977173,-801.96,0.00014904,2]
[331802494,1720765977182,-676.83,0.00014904,2]
[331802495,1720765977192,-576.46,0.00014904,2]
[331802496,1720765977202,-679.71,0.00014904,2]
[331802497,1720765977212,-699.82,0.00014904,2]
[331802498,1720765977222,-902.64,0.00014904,2]
[331802499,1720765977232,-500.0,0.00014904,2]
[331802500,1720765977244,-969.66,0.00014904,2]
[331802501,1720765977255,-1386.9,0.00014904,2]
[331802502,1720765977267,-832.86,0.00014904,2]
[331802503,1720765977276,-1142.56,0.00014904,2]
[331802504,1720765977286,-584.03,0.00014904,2]
[331802505,1720765977296,-678.02,0.00014904,2]
[331802506,1720765977305,-965.58,0.00014904,2]
[331802507,1720765977315,-980.86,0.00014904,2]
[331802508,1720765977324,-625.22,0.00014904,2]
[331802509,1720765977334,-1043.71,0.00014904,2]
[331802510,1720765977343,-500.0,0.00014904,2]
[331802511,1720765977353,-663.07,0.00014904,2]
[331802512,1720765977362,-1311.76,0.00014904,2]
[331802513,1720765977371,-1064.74,0.00014904,2]
[331802514,1720765977380,-1453.03,0.00014904,2]
[331802515,1720765977389,-625.46,0.00014904,2]
[331802516,1720765977400,-651.67,0.00014904,2]
[331802517,1720765977409,-1301.15,0.00014904,2]
[331802518,1720765977418,-618.62,0.00014904,2]
[331802519,1720765977428,-1182.83,0.00014904,2]
[331802520,1720765977437,-871.11,0.00014904,2]
[331802521,1720765977447,-886.56,0.00014904,2]
[331802522,1720765977456,-1085.4,0.00014904,2]
[331802523,1720765977466,-830.96,0.00014904,2]
[331802524,1720765977476,-896.6,0.00014904,2]
[331802525,1720765977486,-674.06,0.00014904,2]
[331802526,1720765977495,-1895.01,0.00014904,2]
[331802527,1720765977505,-1172.9,0.00014904,2]
[331802528,1720765977515,-1660.92,0.00014904,2]
[331802529,1720765977528,-644.5,0.00014904,2]
[331802530,1720765977538,-1467.31,0.00014904,2]
[331802531,1720765977547,-981.49,0.00014904,2]
[331802532,1720765977557,-1112.45,0.00014904,2]
[331802533,1720765977567,-721.53,0.00014904,2]
[331802534,1720765977576,-773.09,0.00014904,2]
[331802535,1720765977586,-750.22,0.00014904,2]
[331802536,1720765977595,-617.12,0.00014904,2]
[331802537,1720765977606,-1485.55,0.00014904,2]
[331802538,1720765977616,-645.73,0.00014904,2]
[331802539,1720765977626,-609.33,0.00014904,2]
[331802540,1720765977635,-1043.11,0.00014904,2]
[331802541,1720765977645,-577.94,0.00014904,2]
[331802542,1720765977654,-572.94,0.00014904,2]
[331802543,1720765977664,-1001.09,0.00014904,2]
[331802544,1720765977673,-826.26,0.00014904,2]
[331802545,1720765977682,-863.68,0.00014904,2]
[331802546,1720765977692,-978.71,0.00014904,2]
[331802547,1720765977703,-927.14,0.00014904,2]
[331802548,1720765977712,-1033.49,0.00014904,2]
[331802549,1720765977721,-584.99,0.00014904,2]
[331802550,1720765977732,-924.22,0.00014904,2]
[331802551,1720765977742,-1551.06,0.00014904,2]
[331802552,1720765977752,-936.64,0.00014904,2]
[331802553,1720765977763,-601.64,0.00014904,2]
[331802554,1720765977773,-1266.54,0.00014904,2]
[331802555,1720765977783,-583.16,0.00014904,2]
[331802556,1720765977793,-1145.72,0.00014904,2]
[331802557,1720765977802,-628.89,0.00014904,2]
[331802558,1720765977810,-1072.75,0.00014904,2]
[331802559,1720765977820,-882.64,0.00014904,2]
[331802560,1720765977830,-908.15,0.00014904,2]
[331802561,1720765977849,-617.45,0.00014904,2]
[331802562,1720765977860,-597.8,0.00014904,2]
[331802563,1720765977869,-1413.12,0.00014904,2]
[331802564,1720765977879,-684.65,0.00014904,2]
[331802565,1720765977889,-1269.4,0.00014904,2]
[331802566,1720765977901,-1009.57,0.00014904,2]
[331802567,1720765977912,-820.34,0.00014904,2]
[331802568,1720765977923,-570.33,0.00014904,2]
[331802569,1720765977933,-751.75,0.00014904,2]
[331802570,1720765977943,-1287.67,0.00014904,2]
[331802571,1720765977953,-922.77,0.00014904,2]
[331802572,1720765977965,-1345.39,0.00014904,2]
[331802573,1720765977976,-649.45,0.00014904,2]
[331802574,1720765977988,-536.18,0.00014904,2]
[331802575,1720765977999,-895.96,0.00014904,2]
[331802576,1720765978010,-566.55,0.00014904,2]
[331802577,1720765978020,-729.38,0.00014904,2]
[331802578,1720765978030,-1632.41,0.00014904,2]
[331802579,1720765978040,-1661.47,0.00014904,2]
[331802580,1720765978051,-1622.68,0.00014904,2]
[331802581,1720765978061,-1461.03,0.00014904,2]
[331802582,1720765978071,-600.18,0.00014904,2]
[331802583,1720765978081,-932.1,0.00014904,2]
[331802584,1720765978091,-652.76,0.00014904,2]
[331802585,1720765978102,-590.79,0.00014904,2]
[331802586,1720765978112,-649.76,0.00014904,2]
[331802587,1720765978122,-562.94,0.00014904,2]
[331802588,1720765978132,-500.0,0.00014904,2]
[331802589,1720765978143,-511.55,0.00014904,2]
[331802590,1720765978153,-682.84,0.00014904,2]
[331802591,1720765978164,-913.11,0.00014904,2]
[331802592,1720765978175,-557.92,0.00014904,2]
[331802593,1720765978185,-665.1,0.00014904,2]
[331802594,1720765978195,-655.14,0.00014904,2]
[331802595,1720765978206,-647.57,0.00014904,2]
[331802596,1720765978216,-1070.59,0.00014904,2]
[331802597,1720765978226,-549.77,0.00014904,2]
[331802598,1720765978239,-955.34,0.00014904,2]
[331802599,1720765978248,-572.55,0.00014904,2]
[331802600,1720765978259,-1087.88,0.00014904,2]
[331802601,1720765978269,-924.38,0.00014904,2]
[331802602,1720765978280,-895.76,0.00014904,2]
[331802603,1720765978290,-877.72,0.00014904,2]
[331802604,1720765978300,-811.35,0.00014904,2]
[331802605,1720765978310,-701.46,0.00014904,2]
[331802606,1720765978321,-943.64,0.00014904,2]
[331802607,1720765978332,-535.3,0.00014904,2]
[331802608,1720765978343,-951.0,0.00014904,2]
[331802609,1720765978353,-533.99,0.00014904,2]
[331802610,1720765978364,-591.54008889,0.00014904,2]
[331802611,1720765978376,-691.79,0.00014904,2]
[331802612,1720765978387,-749.0,0.00014904,2]
[331802613,1720765978396,-1153.39,0.00014904,2]
[331802614,1720765978406,-646.61,0.00014904,2]
[331802615,1720765978417,-828.98,0.00014904,2]
[331802616,1720765978427,-797.92,0.00014904,2]
[331802617,1720765978437,-678.2,0.00014904,2]
[331802618,1720765978447,-925.55,0.00014904,2]
[331802619,1720765978457,-742.09,0.00014904,2]
[331802620,1720765978467,-718.26,0.00014904,2]
[331802621,1720765978477,-660.22,0.00014904,2]
[331802622,1720765978486,-685.66,0.00014904,2]
[331802623,1720765978497,-616.92,0.00014904,2]
[331802624,1720765978507,-626.69,0.00014904,2]
[331802625,1720765978517,-1182.27,0.00014904,2]
[331802626,1720765978532,-751.88,0.00014904,2]
[331802627,1720765978543,-578.66,0.00014904,2]
[331802628,1720765978554,-788.87,0.00014904,2]
[331802629,1720765978564,-589.96,0.00014904,2]
[331802630,1720765978577,-1518.85,0.00014904,2]
[331802631,1720765978587,-863.12,0.00014904,2]
[331802632,1720765978598,-500.0,0.00014904,2]
[331802633,1720765978608,-765.3,0.00014904,2]